Workbook

Sheet Selección
B3: Utilidades para motocicletas
C6: En esta hoja de cálculo se incluyen e incluyen dos utilidades para motocicletas. La primera sirve para calcular la velocidad obtenida en cada relación de marcha en función de los desarrollos. La segunda sirve para verificar si el SAG de nuestra motocicleta se encuentra dentro de los parámetros aconsejables

Sheet Desarrollos
B2: DESARROLLOS | G2: HUSQVARNA FE 350-2020
B5: Llanta: | C5: 18 | D5: Pulgadas | G5: Altura neumático | H5: 8 | I5: cm. | J5: Desarrollo: | K5: =(((C5*2.54)+16)*3.1416)/100 -> 1.93899552 | L5: m. por vuelta | N5: Altura neumático: | P5: 8 | Q5: cm.
B7: Eje primario | D7: Eje Secundario | E7: Relación | G7: Se pueden modificar los valores de todos los recuadros en verde por los que correspondan en cada caso, se debe indicar la altura del balón del neumático trasero y la medida de la llanta trasera ya que el cálculo de velocidad se hace en función de las vueltas queda la rueda a las recoluciones por munuto que se indiquen en el recuadro correspondiente.
B8: Primaria: | C8: 24 | D8: 73 | E8: =$C$8/$D$8 -> 0.3287671233
C10: Piñon | D10: Corona | E10: Relación
B11: Secundaria-1: | C11: 14 | D11: 51 | E11: =C11/D11 -> 0.2745098039
B12: Secundaria-2: | C12: 13 | D12: 52 | E12: 0.25
B14: Eje primario | D14: Eje secundario | E14: Relación
B15: 1ª | C15: 14 | D15: 32 | E15: 0.4375
B16: 2ª | C16: 16 | D16: 26 | E16: 0.6153846154
B17: 3ª | C17: 20 | D17: 25 | E17: 0.8
B18: 4ª | C18: 22 | D18: 23 | E18: 0.9565217391
B19: 5ª | C19: 25 | D19: 22 | E19: 1.136363636
B20: 6ª | C20: 26 | D20: 20 | E20: 1.3
D22: Velocidad a | E22: 10000 | F22: RPM
C24: Velocidad secundaria 1 | G24: Velocidad Secundaria 2
B25: Desarrollo | E25: Velocidad | G25: Desarrollo | J25: Velocidad
C26: 1ª | D26: =$E$8*$E$11*$E15*$K$5 -> 0.07655985534 | E26: =(D26*$E$22*60)/1000 -> 45.93591321 | H26: 1ª | I26: =$E$8*$E$12*$E15*$K$5 -> 0.06972415397 | J26: =(I26*$E$22*60)/1000 -> 41.83449238
C27: 2ª | D27: =$E$8*$E$11*$E16*$K$5 -> 0.1076885877 | E27: =(D27*$E$22*60)/1000 -> 64.61315264 | H27: 2ª | I27: =$E$8*$E$12*$E16*$K$5 -> 0.09807353526 | J27: =(I27*$E$22*60)/1000 -> 58.84412115
C28: 3ª | D28: 0.1399951641 | E28: 83.99709843 | H28: 3ª | I28: 0.1274955958 | J28: 76.4973575
C29: 4ª | D29: 0.1673855222 | E29: 100.4313133 | H29: 4ª | I29: 0.1524403863 | J29: 91.4642318
C30: 5ª | D30: 0.1988567671 | E30: 119.3140603 | H30: 5ª | I30: 0.1811016986 | J30: 108.6610192
C31: 6ª | D31: 0.2274921416 | E31: 136.495285 | H31: 6ª | I31: 0.2071803432 | J31: 124.3082059

Sheet SAG
